bitfinex-derivatives/quotes_ETHF0:USTF0_20250624
["timestamp","ask_amount","ask_price","bid_price","bid_amount"]
[1750727758931,1.81173832,2404.8,2404.7,4.65469538]
[1750727759131,4.03889,2404.9,2404.7,12.19485538]
[1750727759332,3.2078,2404.9,2404.8,0.83112]
[1750727759531,0.83108,2405.0,2404.8,0.83112]
[1750727759734,0.7212,2405.2,2404.7,11.36369538]
[1750727759936,0.98049454,2405.1,2404.8,0.6989]
[1750727760125,0.83107,2405.0,2404.8,1.53002]
[1750727760433,0.83104,2405.1,2404.9,0.83109]
[1750727760731,0.83101,2405.2,2405.0,12.19373538]
[1750727760928,0.83093,2405.4,2405.0,11.36269538]
[1750727761130,1.5338,2405.5,2405.3,4.65469538]
[1750727761335,0.6648,2405.8,2405.4,7.5389]
[1750727761520,0.83086,2405.6,2405.4,7.5389]
[1750727761932,0.83088,2405.5,2405.4,6.708]
[1750727762130,0.83087,2405.6,2405.4,6.708]
[1750727762337,0.83087,2405.6,2405.4,7.53892]
[1750727762730,0.83088,2405.5,2405.4,6.708]
[1750727762932,0.83092,2405.4,2405.3,4.65469538]
[1750727763229,0.83092,2405.4,2405.3,11.36269538]
[1750727763434,0.83095,2405.3,2405.2,3.2078]
[1750727763730,0.83095,2405.3,2405.2,6.707]
[1750727763936,0.83102,2405.1,2405.0,25.639]
[1750727764237,0.83102,2405.1,2405.0,32.346]
[1750727764428,0.83096,2405.3,2405.0,32.346]
[1750727764634,0.83099,2405.2,2405.0,33.17704]
[1750727764938,0.83099,2405.2,2405.0,0.83104]
[1750727765138,0.83097,2405.3,2405.1,6.707]
[1750727765937,0.83099,2405.2,2405.1,6.707]
[1750727766134,1.4482515,2405.6,2405.1,11.36169538]
[1750727766341,0.83099,2405.2,2405.1,11.36169538]
[1750727766738,0.83094,2405.4,2405.2,0.83098]
[1750727767337,0.8309,2405.5,2405.2,0.83098]
[1750727767836,0.0637515,2405.6,2405.4,4.65469538]
[1750727768025,0.8946115,2405.6,2405.5,6.707]
[1750727768734,0.0637515,2405.6,2405.5,7.53788]
[1750727769037,0.0637515,2405.6,2405.5,6.707]
[1750727769242,0.8946015,2405.6,2405.5,6.707]
[1750727769831,0.83095,2405.3,2405.2,3.2078]
[1750727770138,0.83099,2405.2,2405.1,6.706]
[1750727770337,2.91779,2405.2,2405.1,6.706]
[1750727770538,0.83102,2405.1,2404.8,2.2399]
[1750727770837,0.83105,2405.0,2404.9,6.706]
[1750727772436,0.83104,2405.1,2404.9,7.53708]
[1750727772637,2.0868,2405.2,2404.9,6.706]
[1750727772840,2.0868,2405.2,2405.1,0.83102]
[1750727773142,0.7172,2405.2,2405.1,0.83102]
[1750727773842,1.54819,2405.2,2405.0,5.48572538]
[1750727774242,0.7172,2405.2,2405.1,0.83102]
[1750727774537,1.9935,2405.5,2405.0,4.65469538]
[1750727774938,0.83097,2405.3,2405.1,0.83101]
[1750727775134,0.83093,2405.4,2405.2,7.53697]
[1750727776444,0.83093,2405.4,2405.2,6.706]
[1750727776742,0.83095,2405.3,2405.2,6.706]
[1750727777435,0.83094,2405.4,2405.2,6.706]
[1750727777739,0.83094,2405.4,2405.2,7.53696]
[1750727777942,0.83095,2405.3,2405.2,6.706]
[1750727778138,0.83094,2405.4,2405.2,7.53699]
[1750727778746,2.82439,2405.5,2405.3,0.83093]
[1750727779042,2.8244,2405.5,2405.3,0.83093]
[1750727779543,2.8244,2405.5,2405.3,5.48562538]
[1750727780344,0.83092,2405.4,2405.3,4.65469538]
[1750727781037,0.83091,2405.5,2405.3,5.48564538]
[1750727781243,0.83092,2405.4,2405.3,4.65469538]
[1750727781440,0.8309,2405.5,2405.3,5.48563538]
[1750727781745,0.83088,2405.5,2405.4,0.83092]
[1750727782442,0.83088,2405.5,2405.3,5.48563538]
[1750727782632,0.83092,2405.4,2405.3,5.48563538]
[1750727782834,0.83095,2405.3,2405.2,9.9138]
[1750727783030,0.83095,2405.3,2405.2,3.2078]
[1750727783235,0.83095,2405.3,2405.2,9.9128]
[1750727783439,0.8947015,2405.3,2405.2,6.705]
[1750727783639,0.0637515,2405.3,2405.0,0.83105]
[1750727783840,0.83103,2405.1,2404.9,4.03887]
[1750727784040,2.88851,2405.2,2405.0,7.53605]
[1750727784642,0.83102,2405.1,2405.0,6.705]
[1750727785239,2.16862,2405.1,2405.0,6.705]
[1750727785538,1.3376,2405.1,2405.0,7.53605]
[1750727785939,0.6963,2405.2,2405.1,0.83102]
[1750727786145,0.0637515,2405.3,2405.2,0.83099]
[1750727786443,0.0637515,2405.3,2405.2,4.03879]
[1750727786945,0.8947015,2405.3,2405.2,10.74379]
[1750727787144,3.2078,2405.9,2405.2,14.9128]
[1750727787348,1.3888,2406.2,2406.1,0.83067]
[1750727787541,2.18656,2406.5,2406.3,0.8306]
[1750727787744,2.18654,2406.5,2406.4,6.705]
[1750727788143,1.356,2406.5,2406.4,6.705]
[1750727788544,0.83048,2406.7,2406.4,7.53557]
[1750727789148,2.18648,2406.7,2406.4,7.53557]
[1750727789649,0.83054,2406.5,2406.4,6.705]
[1750727790048,0.83051,2406.6,2406.4,6.705]
[1750727790352,1.356,2406.7,2406.5,0.83054]
[1750727791254,2.18647,2406.7,2406.6,6.704]
[1750727791445,1.3888,2406.8,2406.6,6.704]
[1750727792145,4.03822,2406.9,2406.6,6.704]
[1750727792548,4.03822,2406.9,2406.6,7.53448]
[1750727792745,4.03822,2406.9,2406.7,0.83047]
[1750727793049,1.3179,2407.1,2406.7,5.48512538]
[1750727793241,2.14825,2407.1,2406.8,0.83043]
[1750727793437,0.83036,2407.0,2406.9,6.703]
[1750727794152,2.14824,2407.1,2406.9,6.703]
[1750727794354,0.83032,2407.2,2406.9,7.53338]
[1750727794551,0.83033,2407.1,2406.9,6.703]
[1750727794865,0.83036,2407.0,2406.9,6.703]
[1750727795050,0.8303,2407.2,2406.9,6.703]
[1750727795255,0.8303,2407.2,2407.0,3.2078]
[1750727795554,3.2078,2407.7,2407.0,7.86249538]
[1750727795743,0.83021,2407.5,2407.3,4.65469538]
[1750727795944,0.83021,2407.5,2407.4,6.703]
[1750727796845,0.83018,2407.6,2407.4,6.703]
[1750727797749,0.83019,2407.5,2407.4,6.703]
[1750727799857,0.83017,2407.6,2407.4,6.701]
[1750727800149,0.83019,2407.5,2407.4,6.701]
[1750727800744,0.83029,2407.3,2407.1,4.65469538]
[1750727801050,2.18725,2407.4,2407.2,6.701]
[1750727801253,0.83025,2407.4,2407.2,7.53129]
[1750727801449,0.83026,2407.3,2407.2,6.701]
[1750727802045,3.43243,2407.6,2407.2,6.701]
[1750727802254,4.03806,2407.3,2407.2,6.701]
[1750727802450,0.83036,2407.0,2406.9,6.701]
[1750727802651,4.03816,2407.0,2406.9,6.701]
[1750727803945,0.83047,2406.7,2406.6,47.871]
[1750727804148,0.83047,2406.7,2406.6,54.572]
[1750727804758,0.83045,2406.8,2406.6,55.4025]
[1750727805155,0.83045,2406.8,2406.6,54.572]
[1750727805660,0.83047,2406.7,2406.6,54.572]
[1750727806454,0.83044,2406.8,2406.6,54.572]
[1750727806653,0.83047,2406.7,2406.6,54.572]
[1750727806956,1.50207,2406.7,2406.6,54.571]
[1750727807260,0.6716,2406.7,2406.5,6.7]
[1750727807463,2.2074,2406.6,2406.5,6.7]
[1750727807861,1.3769,2406.6,2406.4,6.7]
[1750727808058,0.83067,2406.1,2406.0,6.7]
[1750727809364,0.83065,2406.2,2406.0,6.7]
[1750727809666,2.15137,2406.1,2406.0,6.7]
[1750727810165,1.3207,2406.1,2406.0,6.7]
[1750727810768,2.15137,2406.1,2406.0,6.7]
[1750727811163,0.83071,2406.0,2405.9,47.853]
[1750727811363,2.14631,2406.0,2405.9,54.553]
[1750727811669,0.83074,2405.9,2405.8,9.9078]
[1750727811868,2.14634,2405.9,2405.8,9.9078]
[1750727812565,2.14634,2405.9,2405.4,6.06129538]
[1750727812566,0.83083,2405.7,2405.5,3.2078]
[1750727812761,2.0217,2405.6,2405.5,9.9078]
[1750727812968,0.7213,2405.8,2405.7,0.83081]
[1750727814663,0.83073,2406.0,2405.8,0.83078]
[1750727814875,0.83074,2405.9,2405.8,6.701]
[1750727816673,1.54334,2405.9,2405.8,6.701]
[1750727816872,2.92114,2405.9,2405.8,6.701]
[1750727819766,0.83085,2405.6,2405.5,3.2078]
[1750727820070,0.83085,2405.6,2405.5,6.701]
[1750727820266,2.0904,2405.9,2405.5,7.53187]
[1750727820466,0.83079,2405.8,2405.6,0.83085]
[1750727821273,0.83078,2405.8,2405.6,0.83085]
[1750727821768,0.83078,2405.8,2405.5,9.9088]
[1750727821769,0.83078,2405.8,2405.5,10.73966]
[1750727822272,2.92116,2405.9,2405.6,0.83084]
[1750727822468,0.83078,2405.8,2405.6,0.83084]
[1750727822771,2.92117,2405.9,2405.6,0.83084]
[1750727823072,1.54337,2405.9,2405.6,0.83084]
[1750727823273,1.54337,2405.9,2405.6,1.55564]
[1750727823468,0.83078,2405.8,2405.6,1.55564]
[1750727824066,5.2082,2406.2,2405.7,4.65469538]
[1750727824266,0.6635,2406.1,2405.8,6.702]
[1750727824467,0.83074,2405.9,2405.8,6.702]
[1750727824766,0.83074,2405.9,2405.1,3.2078]
[1750727824767,2.07709,2405.7,2405.1,3.2078]
[1750727824972,0.83092,2405.4,2405.3,6.702]
[1750727825468,0.8309,2405.5,2405.3,6.702]
[1750727826367,0.83092,2405.4,2405.3,6.702]
[1750727827370,0.83087,2405.6,2405.4,0.8309]
[1750727827673,0.83087,2405.6,2405.3,7.53293]
[1750727827970,1.4024515,2405.8,2405.3,7.53293]
[1750727827971,0.83088,2405.5,2405.3,7.53293]
[1750727828170,0.83087,2405.6,2405.3,7.53293]
[1750727828474,0.83087,2405.6,2405.4,0.83091]
[1750727829074,0.83087,2405.6,2405.4,2.24631]
[1750727830265,0.0637515,2405.8,2405.4,34.89789538]
[1750727830466,0.83083,2405.7,2405.5,0.83086]
[1750727830666,0.83083,2405.7,2405.6,6.703]
[1750727831063,0.83088,2405.5,2405.4,4.6232]
[1750727831374,0.83088,2405.5,2405.4,33.7374]
[1750727831675,0.83093,2405.4,2405.2,53.34466538]
[1750727831875,0.83093,2405.4,2405.3,32.322]
[1750727832368,0.83095,2405.3,2405.2,47.859]
[1750727832569,0.83095,2405.3,2405.2,80.182]
[1750727832870,0.83095,2405.3,2405.2,47.859]
[1750727833172,0.83095,2405.3,2405.2,54.562]
[1750727835373,1.49144,2405.4,2405.2,55.39299]
[1750727835571,0.83095,2405.3,2405.2,54.562]
[1750727837574,3.2078,2405.7,2405.2,59.21669538]
[1750727837764,3.2078,2405.7,2405.4,0.8309]
[1750727837765,1.81040276,2405.6,2405.4,0.8309]
[1750727837966,4.03863,2405.7,2405.5,33.15187]
[1750727839575,3.2078,2405.7,2405.6,0.83085]
[1750727839772,4.18762135,2405.7,2405.6,0.83085]
[1750727839979,3.2078,2405.7,2405.6,0.83085]
[1750727840278,4.18784365,2405.7,2405.6,0.83085]
[1750727840673,3.2078,2406.4,2406.1,0.83065]
[1750727840867,1.8104259,2406.3,2406.2,6.701]
[1750727841280,3.1864259,2406.3,2406.2,6.701]
[1750727841684,0.83077,2405.9,2405.6,3.30404653]
[1750727841975,0.83077,2405.9,2405.7,32.321]
[1750727842175,0.83077,2405.9,2405.7,33.15181]
[1750727842672,0.83078,2405.8,2405.7,32.321]
[1750727842868,0.83078,2405.8,2405.5,11.00071191]
[1750727843073,0.83079,2405.8,2405.6,32.319]
[1750727843774,0.83079,2405.8,2405.6,33.14984]
[1750727843975,2.0563,2406.0,2405.6,32.319]
[1750727844173,2.0563,2406.0,2405.6,40.18149538]
[1750727844476,2.88702,2406.0,2405.7,0.83081]
[1750727845578,2.88702,2406.0,2405.8,0.83077]
[1750727845979,2.88702,2406.0,2405.7,0.83079]
[1750727846276,2.0563,2406.0,2405.6,40.18149538]
[1750727846486,0.83081,2405.7,2405.6,35.5268]
[1750727846679,0.7197,2405.9,2405.6,35.5268]
[1750727847281,2.0479,2405.9,2405.6,9.9088]
[1750727847489,0.83081,2405.8,2405.6,36.35665]
[1750727848786,2.87867,2405.9,2405.7,0.83081]
[1750727849285,0.83078,2405.8,2405.7,0.83081]
[1750727849488,2.87867,2405.9,2405.7,0.83081]
[1750727849677,0.7197,2405.9,2405.7,0.83079]
[1750727849879,1.55046,2405.9,2405.7,0.83079]
[1750727850484,1.55046,2405.9,2405.8,0.83078]
[1750727850673,1.55046,2405.9,2405.6,35.5258]
[1750727850876,0.83081,2405.7,2405.6,35.5258]
[1750727851187,0.83081,2405.7,2405.6,32.318]
[1750727852892,2.87356,2405.9,2405.7,0.8308]
[1750727853286,2.0428,2405.9,2405.6,32.318]
[1750727853598,2.87357,2405.9,2405.7,33.14581]
[1750727854193,0.83078,2405.8,2405.7,33.14581]
[1750727854486,0.83078,2405.8,2405.7,32.315]
[1750727854989,0.83078,2405.8,2405.7,33.14581]
[1750727855291,0.83078,2405.8,2405.7,32.315]
[1750727855484,0.0637515,2405.7,2405.6,0.83085]
[1750727855793,0.0637515,2405.7,2405.6,33.14485]
[1750727857188,0.0637515,2405.7,2405.6,32.314]
[1750727857490,0.8945615,2405.7,2405.6,33.14485]
[1750727857687,0.0637515,2405.7,2405.6,33.14485]
[1750727859692,0.0637515,2405.7,2405.6,36.35265]
[1750727860489,0.0637515,2405.7,2405.6,37.02485]
[1750727861088,3.2078,2406.1,2405.6,37.02485]
[1750727861089,3.2078,2406.4,2405.7,2.07704]
[1750727861287,0.97925384,2406.3,2406.2,0.83063]
[1750727861480,2.21022,2406.6,2406.4,0.83057]
[1750727861788,0.97912664,2406.5,2406.2,32.312]
[1750727862091,4.18694007,2406.4,2406.2,32.312]
[1750727862287,1.3183,2406.4,2406.2,32.312]
[1750727862689,0.83061,2406.3,2406.2,32.312]
[1750727862891,0.83067,2406.1,2405.9,0.83073]
[1750727863092,0.83067,2406.1,2406.0,32.309]
[1750727866391,0.97923918,2406.1,2405.8,0.7199]
[1750727866590,0.83071,2406.0,2405.9,32.307]
[1750727867899,2.15531,2406.0,2405.9,32.307]
[1750727868098,3.13297958,2406.0,2405.9,32.307]
[1750727868500,3.1329668,2406.0,2405.9,32.307]
[1750727868999,2.3022568,2406.0,2405.6,7.95873191]
[1750727869200,1.3246,2406.0,2405.9,6.695]
[1750727869396,2.30251898,2406.0,2405.9,6.695]
[1750727869598,3.19698048,2406.0,2405.9,6.695]
[1750727869988,12.02096586,2406.0,2405.4,5.68101653]
[1750727870194,0.83095,2405.3,2405.2,57.02721653]
[1750727870393,0.83095,2405.3,2405.2,54.554]
[1750727871398,0.83094,2405.4,2405.2,54.554]
[1750727871600,0.83094,2405.4,2405.2,55.38497]
[1750727872402,0.83095,2405.3,2405.2,54.554]
[1750727872703,0.83093,2405.4,2405.2,54.554]
[1750727873002,0.83093,2405.4,2405.2,55.38498]
[1750727873200,0.83095,2405.3,2405.2,54.554]
[1750727873503,0.83095,2405.3,2405.2,80.161]
[1750727873902,7.07747,2405.3,2404.7,6.695]
[1750727874105,0.83112,2404.8,2404.7,6.695]
[1750727874300,0.8311,2404.9,2404.7,6.695]
[1750727874603,0.83112,2404.8,2404.7,6.695]
[1750727875002,2.16522,2404.8,2404.7,6.695]
[1750727875302,2.16522,2404.8,2404.6,32.302]
[1750727875505,1.51366,2404.7,2404.6,32.302]
[1750727875698,0.8312,2404.6,2404.4,4.03904]
[1750727875900,2.91468,2404.7,2404.5,32.302]
[1750727876101,1.401,2404.6,2404.5,6.695]
[1750727877304,2.23219,2404.6,2404.4,3.2078]
[1750727877602,0.83133,2404.2,2404.0,47.873]
[1750727877800,0.83133,2404.2,2404.0,6.696]
[1750727877993,1.401,2404.1,2403.8,3.2078]
[1750727878203,0.83144,2403.9,2403.8,3.2078]
[1750727878701,1.4145,2403.9,2403.8,4.03927]
[1750727879000,1.4145,2403.9,2403.8,3.2078]
[1750727879202,2.24594,2403.9,2403.8,3.2078]
[1750727879407,1.4145,2403.9,2403.8,3.2078]
[1750727879705,1.4145,2403.9,2403.8,4.03927]
[1750727880204,0.715,2404.1,2404.0,0.8314]
[1750727880391,2.1409,2404.4,2404.1,0.83135]
[1750727880596,2.796,2404.4,2404.1,0.83135]
[1750727881002,2.796,2404.4,2404.0,11.35169538]
[1750727881198,3.2078,2404.8,2404.1,3.2078]
[1750727881506,1.55757,2404.7,2404.4,0.83125]
[1750727881705,2.1775,2404.7,2404.5,0.8312]
[1750727881901,2.1775,2404.7,2404.6,0.83119]
[1750727882102,0.7093,2404.9,2404.7,0.83114]
[1750727882500,0.7093,2404.9,2404.6,32.31]
[1750727882696,0.83121,2404.6,2404.3,0.83128]
[1750727882897,0.83121,2404.6,2404.5,6.697]
[1750727883106,5.3682,2404.9,2404.5,7.52821]
[1750727883508,0.83115,2404.8,2404.5,7.52821]
[1750727883705,1.4511,2404.7,2404.5,7.52821]
[1750727883905,2.28226,2404.7,2404.5,6.697]
[1750727884107,1.4511,2404.7,2404.4,6.698]
[1750727884301,1.4511,2404.7,2404.6,0.83119]
[1750727884602,1.4511,2404.7,2404.4,3.2078]
[1750727884810,1.4511,2404.7,2404.5,0.83121]
[1750727885511,2.28228,2404.7,2404.4,10.73705]
[1750727885700,3.2078,2404.6,2404.2,0.83132]
[1750727885900,1.3468,2404.5,2404.2,6.698]
[1750727886100,2.17805,2404.5,2404.2,7.52933]
[1750727886408,2.17805,2404.5,2404.2,6.698]
[1750727886409,0.8313,2404.3,2404.2,6.698]
[1750727886706,0.83128,2404.4,2404.2,6.698]
[1750727886910,1.3468,2404.3,2404.2,6.698]
[1750727887408,1.3468,2404.3,2404.0,6.698]
[1750727887609,0.83137,2404.1,2404.0,6.698]
[1750727888102,0.83135,2404.2,2404.0,7.52939]
[1750727888302,1.3971,2404.2,2404.0,7.52938]
[1750727888500,2.22843,2404.2,2404.0,7.52938]
[1750727888695,0.7144,2404.3,2403.9,0.83141]
[1750727889002,3.9222,2404.3,2403.9,6.698]
[1750727889200,0.8314,2404.0,2403.8,3.2078]
[1750727889402,0.83144,2403.9,2403.8,3.2078]
[1750727889808,0.83142,2404.0,2403.8,3.2078]
[1750727890002,1.3971,2404.0,2403.8,3.2078]
[1750727890208,2.2285,2404.0,2403.8,4.03926]
[1750727890707,1.52928,2404.1,2403.9,0.83144]
[1750727891209,1.52928,2404.1,2403.8,4.03925]
[1750727891406,0.83141,2404.0,2403.8,4.03925]
[1750727891609,0.83144,2403.9,2403.8,3.2078]
[1750727891806,1.365,2404.0,2403.8,4.03927]
[1750727892109,1.52929,2404.1,2403.9,0.83144]
[1750727892915,0.8314,2404.0,2403.8,4.03925]
[1750727893216,0.6979,2404.1,2403.8,3.2078]
[1750727893416,0.6979,2404.1,2404.0,0.8314]
[1750727893712,0.7144,2404.3,2403.8,3.2078]
[1750727893898,0.7144,2404.3,2404.0,0.8314]
[1750727894100,0.83134,2404.2,2404.0,0.8314]
[1750727894305,5.2826,2404.3,2403.9,0.6927]
[1750727894603,0.8314,2404.0,2403.9,0.6927]
[1750727894800,0.83139,2404.1,2403.9,1.52414]
[1750727895002,0.83135,2404.2,2404.0,0.8314]
[1750727895300,2.0748,2404.3,2404.1,0.83136]
[1750727895301,1.54572,2404.3,2404.1,0.83136]
[1750727895904,1.50026,2404.4,2404.2,0.83133]
[1750727896106,2.90317,2404.7,2404.5,0.83123]
[1750727896410,0.83125,2404.5,2404.3,7.53028]
[1750727896611,0.83125,2404.5,2404.3,7.53027]
[1750727897005,0.83121,2404.6,2404.4,0.83124]
[1750727897316,0.684,2404.8,2404.6,0.83118]
[1750727897317,1.51514,2404.8,2404.6,0.83118]
[1750727898117,0.684,2404.8,2404.6,0.83118]
[1750727898311,0.83117,2404.7,2404.5,4.03901]
[1750727898609,0.83123,2404.5,2404.4,0.6774]
[1750727898812,0.83123,2404.5,2404.4,7.3724]
[1750727899109,0.684,2404.8,2404.4,7.3724]
[1750727899311,1.51513,2404.8,2404.5,0.8312]
[1750727899519,0.83116,2404.7,2404.4,8.20364]
[1750727899719,0.83118,2404.7,2404.4,8.20365]
[1750727899902,0.8312,2404.6,2404.4,8.20365]
[1750727900913,0.83123,2404.5,2404.4,7.3724]
[1750727901312,0.83121,2404.6,2404.4,8.20366]
[1750727902114,0.83117,2404.7,2404.5,0.83121]
[1750727902314,0.7477515,2404.8,2404.4,7.3724]
[1750727902806,0.83123,2404.5,2404.4,7.3724]
[1750727906421,0.83122,2404.6,2404.4,7.3724]
[1750727906722,0.83123,2404.5,2404.4,7.3724]
[1750727907209,0.83123,2404.5,2404.4,6.695]
[1750727908520,0.83122,2404.6,2404.4,7.52626]
[1750727908911,0.83122,2404.6,2404.4,6.695]
[1750727909217,0.83122,2404.6,2404.4,7.52624]
[1750727909822,0.83123,2404.5,2404.4,7.52624]
[1750727910224,0.83121,2404.6,2404.4,7.52624]
[1750727910717,0.83123,2404.5,2404.4,6.695]
[1750727911914,0.8313,2404.3,2404.2,3.2078]
[1750727912220,0.8313,2404.3,2404.2,9.9018]
[1750727912516,0.7477515,2404.8,2404.3,0.8313]
[1750727912726,0.83125,2404.5,2404.3,0.8313]
[1750727913024,0.83126,2404.4,2404.3,0.8313]
[1750727913523,0.83125,2404.5,2404.3,0.8313]
[1750727914225,2.0063,2404.7,2404.3,0.8313]
[1750727914226,0.83126,2404.4,2404.3,0.8313]
[1750727914525,2.0063,2404.7,2404.4,0.83125]
[1750727914726,2.0063,2404.7,2404.4,3.29664201]
[1750727914924,0.684,2404.8,2404.6,3.29657201]
[1750727915121,0.97465006,2404.7,2404.6,3.29657201]
[1750727915828,0.684,2404.8,2404.7,0.83116]
[1750727916010,2.48969516,2404.8,2404.6,3.29657201]
[1750727916209,1.51512,2404.8,2404.6,3.29657201]
[1750727917118,0.83116,2404.7,2404.6,2.46539201]
[1750727917520,0.684,2404.8,2404.3,2.47321653]
[1750727917823,0.83126,2404.4,2404.2,4.72632]
[1750727918023,0.8313,2404.3,2404.2,4.72632]
[1750727918325,0.8313,2404.3,2404.2,10.589]
[1750727918627,0.8313,2404.3,2404.2,9.9018]
[1750727918825,0.8313,2404.3,2404.2,3.2078]
[1750727918826,2.9143,2404.3,2404.2,3.2078]
[1750727919120,3.6007,2404.3,2404.2,3.2078]
[1750727920523,3.6007,2404.3,2404.1,6.694]
[1750727920524,0.83133,2404.2,2404.1,6.694]
[1750727920828,0.83144,2403.9,2403.8,3.2078]
[1750727921016,0.83144,2403.9,2403.8,9.9018]
[1750727922222,0.83144,2403.9,2403.8,3.2078]
[1750727924026,0.8315,2403.7,2403.6,2.47321653]
[1750727924231,0.8315,2403.7,2403.6,6.695]
[1750727924631,1.5468,2403.7,2403.6,6.695]
[1750727926716,0.83154,2403.6,2403.5,9.9028]
[1750727927025,2.26563,2403.7,2403.5,10.73435]
[1750727927225,0.83154,2403.6,2403.5,10.73435]
[1750727927432,0.83154,2403.6,2403.5,9.9028]
[1750727927928,0.83151,2403.7,2403.5,15.39561334]
[1750727928128,2.20509,2403.8,2403.6,0.83154]
[1750727928329,1.3736,2403.8,2403.7,0.8315]
[1750727928626,0.83146,2403.9,2403.7,0.8315]
[1750727929630,1.3894,2404.0,2403.6,6.695]
[1750727929828,0.8315,2403.7,2403.6,6.695]
[1750727930327,0.8315,2403.7,2403.6,7.52654]
[1750727930522,0.8315,2403.7,2403.6,6.695]
[1750727930929,0.8315,2403.7,2403.5,4.03935]
[1750727931229,0.8315,2403.7,2403.6,6.69]
[1750727933027,0.83149,2403.8,2403.6,0.83154]
[1750727933238,0.83149,2403.8,2403.6,7.52154]
[1750727933729,0.83147,2403.8,2403.6,7.52152]
[1750727934031,0.8315,2403.7,2403.6,6.69]
[1750727934627,0.8952915,2403.6,2403.5,7.86906334]
[1750727934828,0.8952915,2403.6,2403.5,14.55906334]
[1750727936238,0.0637515,2403.6,2403.5,40.99863334]
[1750727937228,0.0637515,2403.6,2403.5,8.70063334]
[1750727937429,0.0637515,2403.6,2403.5,40.99763334]
[1750727938537,0.0637515,2403.6,2403.5,12.18283334]
[1750727938836,0.0637515,2403.6,2403.5,37.78983334]
[1750727939630,0.0637515,2403.6,2403.5,40.99763334]
[1750727940333,0.0637515,2403.6,2403.5,41.27491177]
[1750727940536,0.0637515,2403.6,2403.5,41.77654177]
[1750727940730,0.0637515,2403.6,2403.5,40.14278653]
[1750727941334,0.0637515,2403.6,2403.5,36.33637]
[1750727942043,0.0637515,2403.6,2403.5,6.50469524]
[1750727942231,0.0637515,2403.6,2403.5,38.80069524]
[1750727942443,0.8952915,2403.6,2403.5,35.5038]
[1750727942739,0.7729515,2403.6,2403.5,35.59289524]
[1750727943342,1.6044915,2403.6,2403.5,34.76132524]
[1750727944331,1.6044915,2403.6,2403.4,0.6587]
[1750727944332,0.83157,2403.5,2403.4,0.6587]
[1750727944643,1.6045115,2403.6,2403.4,32.296]
[1750727944837,0.7729515,2403.6,2403.5,3.29689524]
[1750727945445,1.6045215,2403.6,2403.4,0.83161]
[1750727945635,1.6045215,2403.6,2403.5,32.296]
[1750727945835,1.6045215,2403.6,2403.3,54.31876177]
[1750727946042,0.83161,2403.4,2403.3,50.35421653]
[1750727946242,0.83161,2403.4,2403.3,54.572]
[1750727946443,0.83171,2403.1,2403.0,6.691]
[1750727946939,0.83175,2403.0,2402.9,3.2078]
[1750727947142,2.86395,2403.0,2402.9,3.2078]
[1750727947531,0.83182,2402.8,2402.7,6.691]
[1750727947731,3.2078,2402.8,2402.3,60.28401653]
[1750727948033,2.0284,2402.7,2402.3,86.71209524]
[1750727948238,0.83191,2402.6,2402.3,86.71209524]
[1750727948438,2.86026,2402.7,2402.3,86.71209524]
[1750727948636,2.86026,2402.7,2402.4,0.83195]
[1750727948839,2.86026,2402.7,2402.3,86.71209524]
[1750727949038,2.0284,2402.7,2402.5,0.83189]
[1750727949234,0.6607,2402.7,2402.6,0.83188]
[1750727949630,3.2078,2402.8,2402.5,28.06832524]
[1750727949837,1.9907,2403.0,2402.5,28.06832524]
[1750727949838,1.9907,2403.0,2402.7,2.46532524]
[1750727950044,1.9907,2403.0,2402.7,28.06832524]
[1750727950247,0.83182,2402.8,2402.7,25.603]
[1750727950644,0.83189,2402.6,2402.4,0.83193]
[1750727950835,2.15807,2402.7,2402.5,6.692]
[1750727951041,0.7187,2402.6,2402.5,6.692]
[1750727951239,2.1286,2402.6,2402.3,51.1198]
[1750727951439,0.83194,2402.5,2402.3,57.8118]
[1750727951634,2.24185,2402.4,2402.3,83.4178]
[1750727951943,2.24185,2402.4,2402.3,35.5058]
[1750727952636,1.4099,2402.4,2402.3,36.33779]
[1750727952835,0.7187,2402.6,2402.3,35.5058]
[1750727953046,0.7187,2402.6,2402.4,0.83193]
[1750727953446,0.7187,2402.6,2402.5,26.43992]
[1750727953648,3.2078,2402.9,2402.5,25.608]
[1750727953841,0.83175,2403.1,2402.7,4.66738556]
[1750727954145,2.1353,2403.3,2403.2,0.83168]
[1750727954347,0.0637515,2403.6,2403.1,32.3]
[1750727954539,0.0637515,2403.6,2402.9,3.9324]
[1750727954540,0.7076,2403.4,2402.9,3.9324]
[1750727954739,0.83175,2403.0,2402.7,5.63183]
[1750727954955,0.83175,2403.0,2402.8,32.299]
[1750727955145,0.83173,2403.1,2402.8,33.13081]
[1750727955441,4.03949,2403.2,2402.9,0.83178]
[1750727955646,4.03949,2403.2,2403.0,25.607]
[1750727955834,0.83171,2403.1,2402.9,0.83176]
[1750727956040,3.2078,2403.2,2403.0,32.299]
[1750727956439,1.322,2403.3,2403.0,32.299]
[1750727956647,0.83171,2403.1,2403.0,32.299]
[1750727956951,0.8317,2403.2,2403.0,32.299]
[1750727957647,0.8317,2403.2,2403.0,33.13073]
[1750727958143,0.7076,2403.4,2403.0,33.13073]
[1750727958448,0.83166,2403.3,2403.1,4.66738556]